fUSD/lending_fUSD_20260611
["ID","MTS","AMOUNT","RATE_DAILY","PERIOD"]
[424809583,1781177449000,-500.0,0.00014755,2]
[424809582,1781177449000,-500.0,0.00014755,2]
[424809588,1781177449000,-617.58,0.00014755,2]
[424809586,1781177449000,-617.58,0.00014755,2]
[424809559,1781177449000,-150.0,0.00014674,2]
[424809541,1781177449000,-150.0,0.00014623,2]
[424809564,1781177449000,-150.0,0.00014695,2]
[424809590,1781177449000,-617.58,0.00014755,2]
[424809538,1781177449000,-299.60307495,0.00014606,2]
[424809543,1781177449000,-299.60307495,0.00014636,2]
[424809542,1781177449000,-150.0,0.00014629,2]
[424809540,1781177449000,-299.60307495,0.00014621,2]
[424809539,1781177449000,-150.0,0.0001462,2]
[424809545,1781177449000,-150.0,0.00014646,2]
[424809544,1781177449000,-150.0,0.0001464,2]
[424809548,1781177449000,-1689.64848055,0.00014656,2]
[424809546,1781177449000,-299.60307495,0.00014651,2]
[424809547,1781177449000,-14297.61484587,0.00014656,2]
[424809551,1781177449000,-150.0,0.00014664,2]
[424809550,1781177449000,-150.0,0.0001466,2]
[424809549,1781177449000,-150.0,0.00014659,2]
[424809552,1781177449000,-150.0,0.00014665,2]
[424809553,1781177449000,-150.0,0.00014665,2]
[424809554,1781177449000,-150.0,0.00014665,2]
[424809558,1781177449000,-150.0,0.00014672,2]
[424809557,1781177449000,-299.60307495,0.00014666,2]
[424809555,1781177449000,-150.0,0.00014665,2]
[424809562,1781177449000,-299.60307495,0.00014681,2]
[424809556,1781177449000,-278.60891467,0.00014665,2]
[424809560,1781177449000,-6652.743,0.00014674,2]
[424809561,1781177449000,-394.563,0.00014674,2]
[424809587,1781177449000,-617.58,0.00014755,2]
[424809598,1781177449000,-500.0,0.00014755,2]
[424809591,1781177449000,-617.58,0.00014755,2]
[424809621,1781177449000,-299.60307495,0.00014756,2]
[424809620,1781177449000,-500.0,0.00014755,2]
[424809625,1781177449000,-150.0,0.00014775,2]
[424809627,1781177449000,-150.0,0.00014784,2]
[424809622,1781177449000,-150.0,0.00014768,2]
[424809626,1781177449000,-1689.64848055,0.00014778,2]
[424809623,1781177449000,-299.60307495,0.00014772,2]
[424809628,1781177449000,-299.60307495,0.00014787,2]
[424809624,1781177449000,-150.0,0.00014774,2]
[424809629,1781177449000,-150.0,0.000148,2]
[424809639,1781177449000,-299.60307495,0.00014817,2]
[424809616,1781177449000,-500.0,0.00014755,2]
[424809630,1781177449000,-33277.9515,0.000148,2]
[424809633,1781177449000,-299.60307495,0.00014802,2]
[424809634,1781177449000,-150.0,0.00014804,2]
[424809636,1781177449000,-25000.0,0.00014812,3]
[424809635,1781177449000,-150.0,0.00014809,2]
[424809637,1781177449000,-150.0,0.00014815,2]
[424809638,1781177449000,-5800.0,0.00014815,2]
[424809640,1781177449000,-25000.0,0.00014821,3]
[424809642,1781177449000,-150.0,0.00014825,2]
[424809643,1781177449000,-25000.0,0.0001483,3]
[424809589,1781177449000,-617.58,0.00014755,2]
[424809641,1781177449000,-5800.0,0.00014823,2]
[424809632,1781177449000,-2100.0,0.000148,5]
[424809618,1781177449000,-500.0,0.00014755,2]
[424809631,1781177449000,-2000.0,0.000148,2]
[424809615,1781177449000,-500.0,0.00014755,2]
[424809617,1781177449000,-500.0,0.00014755,2]
[424809593,1781177449000,-500.0,0.00014755,2]
[424809595,1781177449000,-500.0,0.00014755,2]
[424809594,1781177449000,-500.0,0.00014755,2]
[424809597,1781177449000,-549.51495302,0.00014755,2]
[424809596,1781177449000,-500.0,0.00014755,2]
[424809599,1781177449000,-500.0,0.00014755,2]
[424809601,1781177449000,-231.12456704,0.00014755,2]
[424809600,1781177449000,-500.0,0.00014755,2]
[424809602,1781177449000,-500.0,0.00014755,2]
[424809607,1781177449000,-500.0,0.00014755,2]
[424809606,1781177449000,-500.0,0.00014755,2]
[424809592,1781177449000,-500.0,0.00014755,2]
[424809610,1781177449000,-500.0,0.00014755,2]
[424809604,1781177449000,-500.0,0.00014755,2]
[424809605,1781177449000,-500.0,0.00014755,2]
[424809608,1781177449000,-399.31780529,0.00014755,2]
[424809609,1781177449000,-500.0,0.00014755,2]
[424809611,1781177449000,-500.0,0.00014755,2]
[424809612,1781177449000,-500.0,0.00014755,2]
[424809614,1781177449000,-500.0,0.00014755,2]
[424809619,1781177449000,-500.0,0.00014755,2]
[424809613,1781177449000,-500.0,0.00014755,2]
[424809603,1781177449000,-500.0,0.00014755,2]
[424809681,1781177450000,-188.14874168,0.00014878,10]
[424809678,1781177450000,-285.87761885,0.00014877,2]
[424809674,1781177450000,-257.36274763,0.00014877,2]
[424809680,1781177450000,-289.90717118,0.00014877,2]
[424809673,1781177450000,-279.86118902,0.00014877,2]
[424809677,1781177450000,-210.0975545,0.00014877,2]
[424809672,1781177450000,-225.43309031,0.00014877,2]
[424809675,1781177450000,-150.75812701,0.00014877,2]
[424809693,1781177450000,-10000.0,0.000149,2]
[424809676,1781177450000,-208.11144819,0.00014877,2]
[424809679,1781177450000,-299.60307495,0.00014877,2]
[424809683,1781177450000,-5800.0,0.00014883,2]
[424809682,1781177450000,-25000.0,0.00014882,3]
[424809688,1781177450000,-4147.60578,0.00014898,2]
[424809689,1781177450000,-5009.3099125,0.00014898,2]
[424809684,1781177450000,-25000.0,0.00014891,3]
[424809687,1781177450000,-1375.2168628,0.00014898,2]
[424809685,1781177450000,-29885.5514522,0.00014896,2]
[424809690,1781177450000,-1496275.0089632,0.00014898,2]
[424809694,1781177450000,-25000.0,0.000149,3]
[424809691,1781177450000,-216892.2157716,0.00014898,2]
[424809692,1781177450000,-258.3620274,0.00014898,2]
[424809695,1781177450000,-2100.0,0.000149,5]
[424809705,1781177450000,-168.91634944,0.00014949,2]
[424809686,1781177450000,-1122.2817778,0.00014898,2]
[424809671,1781177450000,-248.12091067,0.00014877,2]
[424809646,1781177450000,-617.58,0.00014831,2]
[424809668,1781177450000,-5800.0,0.00014866,2]
[424809696,1781177450000,-20540.24276242,0.000149,2]
[424809644,1781177450000,-632.22545111,0.0001483,2]
[424809645,1781177450000,-500.0,0.0001483,2]
[424809648,1781177450000,-617.58,0.00014831,2]
[424809647,1781177450000,-617.58,0.00014831,2]
[424809650,1781177450000,-617.63837495,0.00014831,2]
[424809649,1781177450000,-617.58,0.00014831,2]
[424809652,1781177450000,-5800.0,0.00014832,2]
[424809651,1781177450000,-299.60307495,0.00014832,2]
[424809653,1781177450000,-25000.0,0.00014838,3]
[424809654,1781177450000,-150.0,0.0001484,2]
[424809655,1781177450000,-5800.0,0.00014841,2]
[424809657,1781177450000,-150.0,0.00014846,2]
[424809658,1781177450000,-299.60307495,0.00014847,2]
[424809660,1781177450000,-5800.0,0.00014849,2]
[424809659,1781177450000,-25000.0,0.00014847,3]
[424809661,1781177450000,-150.0,0.00014851,2]
[424809656,1781177450000,-150.0,0.00014843,2]
[424809662,1781177450000,-25000.0,0.00014856,3]
[424809665,1781177450000,-299.60307495,0.00014862,2]
[424809663,1781177450000,-25000.0,0.00014856,3]
[424809670,1781177450000,-5800.0,0.00014874,2]
[424809664,1781177450000,-5800.0,0.00014858,2]
[424809667,1781177450000,-25000.0,0.00014865,3]
[424809666,1781177450000,-25000.0,0.00014865,3]
[424809669,1781177450000,-25000.0,0.00014874,3]
[424809697,1781177450000,-2000.0,0.000149,2]
[424809744,1781177450000,-336.99,0.00015,2]
[424809699,1781177450000,-14373.45969046,0.000149,3]
[424809732,1781177450000,-2000.0,0.00015,2]
[424809731,1781177450000,-2000.0,0.00015,2]
[424809736,1781177450000,-346.44,0.00015,2]
[424809735,1781177450000,-2000.0,0.00015,2]
[424809733,1781177450000,-2000.0,0.00015,2]
[424809734,1781177450000,-2000.0,0.00015,2]
[424809737,1781177450000,-2000.0,0.00015,2]
[424809738,1781177450000,-2000.0,0.00015,2]
[424809730,1781177450000,-2000.0,0.00015,2]
[424809739,1781177450000,-1977.68,0.00015,2]
[424809740,1781177450000,-2000.0,0.00015,2]
[424809742,1781177450000,-200.0,0.00015,2]
[424809741,1781177450000,-1586.61,0.00015,2]
[424809743,1781177450000,-808.76,0.00015,2]
[424809746,1781177450000,-200.0,0.00015,2]
[424809749,1781177450000,-151.0,0.00015,2]
[424809745,1781177450000,-202.19,0.00015,2]
[424809751,1781177450000,-151.0,0.00015,2]
[424809747,1781177450000,-151.0,0.00015,2]
[424809750,1781177450000,-151.0,0.00015,2]
[424809748,1781177450000,-152.050253,0.00015,2]
[424809752,1781177450000,-151.0,0.00015,2]
[424809753,1781177450000,-151.0,0.00015,2]
[424809755,1781177450000,-151.0,0.00015,2]
[424809698,1781177450000,-250.0,0.000149,2]
[424809729,1781177450000,-2000.0,0.00015,2]
[424809727,1781177450000,-587.3,0.00015,2]
[424809754,1781177450000,-151.0,0.00015,2]
[424809725,1781177450000,-2609.54,0.00015,2]
[424809700,1781177450000,-1689.64848055,0.000149,2]
[424809703,1781177450000,-648.32862605,0.000149,2]
[424809701,1781177450000,-1199.27823509,0.000149,2]
[424809702,1781177450000,-5800.0,0.000149,2]
[424809704,1781177450000,-1613.0535,0.0001493,2]
[424809706,1781177450000,-160.98,0.00014985,2]
[424809708,1781177450000,-95028.6925624,0.00014998,2]
[424809726,1781177450000,-3000.0,0.00015,2]
[424809715,1781177450000,-666.0,0.00014999,2]
[424809716,1781177450000,-377.99479175,0.00014999,2]
[424809713,1781177450000,-300.0,0.00014999,2]
[424809711,1781177450000,-300.0,0.00014999,2]
[424809707,1781177450000,-151.0,0.00014997,2]
[424809714,1781177450000,-300.0,0.00014999,2]
[424809710,1781177450000,-1059.05182638,0.00014999,5]
[424809723,1781177450000,-3000.0,0.00015,2]
[424809722,1781177450000,-7776134.01874104,0.00015,2]
[424809720,1781177450000,-300.0,0.00014999,2]
[424809728,1781177450000,-2152.38,0.00015,2]
[424809724,1781177450000,-3000.0,0.00015,2]
[424809721,1781177450000,-4236457.93540475,0.00015,2]
[424809717,1781177450000,-300.0,0.00014999,2]
[424809718,1781177450000,-300.0,0.00014999,2]
[424809712,1781177450000,-300.0,0.00014999,2]
[424809709,1781177450000,-1059.05182637,0.00014999,5]
[424809719,1781177450000,-666.0,0.00014999,2]
[424809793,1781177451000,-300.0,0.00015026,2]
[424809790,1781177451000,-300.0,0.00015026,2]
[424809791,1781177451000,-666.0,0.00015026,2]
[424809789,1781177451000,-300.0,0.00015026,2]
[424809796,1781177451000,-2000.0,0.00015027,2]
[424809787,1781177451000,-300.0,0.00015026,2]
[424809785,1781177451000,-151.0,0.00015,2]
[424809786,1781177451000,-350.0,0.00015014,4]
[424809783,1781177451000,-346.1279258,0.00015,2]
[424809788,1781177451000,-300.0,0.00015026,2]
[424809792,1781177451000,-300.0,0.00015026,2]
[424809804,1781177451000,-2000.0,0.00015027,2]
[424809794,1781177451000,-666.0,0.00015026,2]
[424809797,1781177451000,-2000.0,0.00015027,2]
[424809800,1781177451000,-2000.0,0.00015027,2]
[424809799,1781177451000,-2000.0,0.00015027,2]
[424809798,1781177451000,-2000.0,0.00015027,2]
[424809801,1781177451000,-2000.0,0.00015027,2]
[424809807,1781177451000,-1145.76,0.00015027,2]
[424809803,1781177451000,-2000.0,0.00015027,2]
[424809806,1781177451000,-2000.0,0.00015027,2]
[424809805,1781177451000,-1242.92,0.00015027,2]
[424809802,1781177451000,-583.01,0.00015027,2]
[424809784,1781177451000,-200.0,0.00015,2]
[424809795,1781177451000,-300.0,0.00015026,2]
[424809781,1781177451000,-151.0,0.00015,2]
[424809771,1781177451000,-1367.898845,0.00015,2]
[424809778,1781177451000,-151.0,0.00015,2]
[424809809,1781177451000,-900.0,0.00015068,2]
[424809756,1781177451000,-151.0,0.00015,2]
[424809760,1781177451000,-151.0,0.00015,2]
[424809759,1781177451000,-151.0,0.00015,2]
[424809758,1781177451000,-151.0,0.00015,2]
[424809757,1781177451000,-200.0,0.00015,2]
[424809762,1781177451000,-151.0,0.00015,2]
[424809761,1781177451000,-151.0,0.00015,2]
[424809764,1781177451000,-151.0,0.00015,2]
[424809765,1781177451000,-151.0,0.00015,2]
[424809773,1781177451000,-1367.898845,0.00015,2]
[424809782,1781177451000,-1000.0,0.00015,2]
[424809763,1781177451000,-151.0,0.00015,2]
[424809770,1781177451000,-1367.898845,0.00015,2]
[424809767,1781177451000,-151.0,0.00015,2]
[424809769,1781177451000,-151.0,0.00015,2]
[424809768,1781177451000,-151.0,0.00015,2]
[424809772,1781177451000,-1367.898845,0.00015,2]
[424809774,1781177451000,-1367.898845,0.00015,2]
[424809776,1781177451000,-1367.898845,0.00015,2]
[424809780,1781177451000,-151.0,0.00015,2]
[424809777,1781177451000,-1367.898845,0.00015,2]
[424809775,1781177451000,-1367.898845,0.00015,2]
[424809779,1781177451000,-151.0,0.00015,2]
[424809766,1781177451000,-151.0,0.00015,2]
[424809808,1781177451000,-502.0,0.00015041,2]
[424809816,1781177451000,-200.0,0.0001515,2]
[424809811,1781177451000,-151.0,0.00015068,2]
[424809841,1781177451000,-500.0,0.00015652,2]
[424809842,1781177451000,-168.91634944,0.00015763,2]
[424809843,1781177451000,-10212.09716464,0.000158,2]
[424809847,1781177451000,-300.0,0.00015999,2]
[424809846,1781177451000,-300.0,0.00015999,2]
[424809848,1781177451000,-300.0,0.00015999,2]
[424809845,1781177451000,-500.0,0.00015926,2]
[424809851,1781177451000,-300.0,0.00015999,2]
[424809849,1781177451000,-687.07472415,0.00015999,2]
[424809850,1781177451000,-300.0,0.00015999,2]
[424809844,1781177451000,-9026.1837,0.000158,2]
[424809840,1781177451000,-200.0,0.00015609,2]
[424809853,1781177451000,-9026.1837,0.00016,2]
[424809855,1781177451000,-215.95576085,0.00016,3]
[424809854,1781177451000,-300.0,0.00016,2]
[424809857,1781177451000,-1734.62772924,0.00016026,2]
[424809858,1781177451000,-300.0,0.00016099,2]
[424809859,1781177451000,-300.0,0.00016099,2]
[424809860,1781177451000,-300.0,0.00016099,2]
[424809862,1781177451000,-10212.09716464,0.000161,2]
[424809861,1781177451000,-300.0,0.00016099,2]
[424809863,1781177451000,-9026.1837,0.000161,2]
[424809864,1781177451000,-404.45804041,0.000161,2]
[424809810,1781177451000,-151.0,0.00015068,2]
[424809852,1781177451000,-10212.09716464,0.00016,2]
[424809838,1781177451000,-200.0,0.00015609,2]
[424809856,1781177451000,-404.45804041,0.00016,2]
[424809837,1781177451000,-9026.1837,0.000156,2]
[424809836,1781177451000,-10212.09716464,0.000156,2]
[424809812,1781177451000,-500.0,0.00015104,2]
[424809813,1781177451000,-200.0,0.0001515,2]
[424809815,1781177451000,-200.0,0.0001515,2]
[424809865,1781177451000,-7717.02363909,0.0001611,15]
[424809817,1781177451000,-150.0,0.000152,2]
[424809818,1781177451000,-300.0,0.00015299,2]
[424809819,1781177451000,-300.0,0.00015299,2]
[424809826,1781177451000,-500.0,0.00015378,2]
[424809825,1781177451000,-200.0,0.00015301,2]
[424809827,1781177451000,-200.0,0.00015455,2]
[424809820,1781177451000,-666.0,0.00015299,2]
[424809814,1781177451000,-200.0,0.0001515,2]
[424809824,1781177451000,-200.0,0.00015301,2]
[424809839,1781177451000,-200.0,0.00015609,2]
[424809830,1781177451000,-1672.7364795,0.00015478,2]
[424809835,1781177451000,-9026.1837,0.000155,2]
[424809834,1781177451000,-10212.09716464,0.000155,2]
[424809833,1781177451000,-666.0,0.00015499,2]
[424809832,1781177451000,-300.0,0.00015499,2]
[424809831,1781177451000,-300.0,0.00015499,2]
[424809829,1781177451000,-200.0,0.00015455,2]
[424809828,1781177451000,-200.0,0.00015455,2]
[424809822,1781177451000,-9026.1837,0.000153,2]
[424809821,1781177451000,-10212.09716464,0.000153,2]
[424809823,1781177451000,-200.0,0.00015301,2]
[424809891,1781177452000,-151.0,0.00016438,2]
[424809889,1781177452000,-151.0,0.00016438,2]
[424809893,1781177452000,-151.0,0.00016438,2]
[424809886,1781177452000,-180.28406394,0.00016438,2]
[424809887,1781177452000,-150.0,0.00016438,2]
[424809888,1781177452000,-152.0,0.00016438,2]
[424809890,1781177452000,-150.0,0.00016438,2]
[424809902,1781177452000,-341.397837,0.00016438,2]
[424809894,1781177452000,-175.987358,0.00016438,2]
[424809897,1781177452000,-341.397837,0.00016438,2]
[424809896,1781177452000,-341.397837,0.00016438,2]
[424809901,1781177452000,-341.397837,0.00016438,2]
[424809903,1781177452000,-341.397837,0.00016438,2]
[424809885,1781177452000,-203.75726942,0.00016438,2]
[424809898,1781177452000,-341.397837,0.00016438,2]
[424809892,1781177452000,-151.0,0.00016438,2]
[424809882,1781177452000,-173.61376,0.00016438,2]
[424809867,1781177452000,-500.0,0.000162,2]
[424809883,1781177452000,-154.87392701,0.00016438,2]
[424809899,1781177452000,-341.397837,0.00016438,2]
[424809868,1781177452000,-10212.09716464,0.000163,2]
[424809871,1781177452000,-300.0,0.00016399,2]
[424809874,1781177452000,-300.0,0.00016399,2]
[424809866,1781177452000,-9999.99,0.00016116,2]
[424809870,1781177452000,-234.0,0.00016373,2]
[424809873,1781177452000,-300.0,0.00016399,2]
[424809884,1781177452000,-944.0,0.00016438,2]
[424809869,1781177452000,-9026.1837,0.000163,2]
[424809879,1781177452000,-249.05,0.00016438,2]
[424809877,1781177452000,-9026.1837,0.000164,2]
[424809875,1781177452000,-720.38,0.000164,2]
[424809876,1781177452000,-10212.09716464,0.000164,2]
[424809878,1781177452000,-1760.5,0.00016438,2]
[424809880,1781177452000,-208.47391662,0.00016438,2]
[424809881,1781177452000,-540.0,0.00016438,2]
[424809872,1781177452000,-300.0,0.00016399,2]
[424809904,1781177452000,-154.610542,0.00016438,2]
[424809895,1781177452000,-230.68,0.00016438,2]
[424809934,1781177452000,-150.0,0.00017286,2]
[424809921,1781177452000,-10212.09716464,0.000168,2]
[424809923,1781177452000,-10212.09716464,0.000169,2]
[424809925,1781177452000,-500.0,0.00017022,2]
[424809926,1781177452000,-10212.09716464,0.000171,2]
[424809929,1781177452000,-151.0,0.00017286,2]
[424809930,1781177452000,-151.0,0.00017286,2]
[424809938,1781177452000,-150.0,0.00017286,2]
[424809924,1781177452000,-249.0,0.0001695,2]
[424809931,1781177452000,-151.0,0.00017286,2]
[424809937,1781177452000,-150.0,0.00017286,2]
[424809935,1781177452000,-237.0492838,0.00017286,2]
[424809932,1781177452000,-150.0,0.00017286,2]
[424809933,1781177452000,-151.0,0.00017286,2]
[424809940,1781177452000,-10212.09716464,0.000173,2]
[424809941,1781177452000,-215.95576085,0.0001731,2]
[424809900,1781177452000,-341.397837,0.00016438,2]
[424809936,1781177452000,-151.0,0.00017286,2]
[424809922,1781177452000,-9026.1837,0.000168,2]
[424809939,1781177452000,-500.0,0.00017296,2]
[424809919,1781177452000,-500.0,0.00016748,2]
[424809912,1781177452000,-151.0,0.00016438,2]
[424809915,1781177452000,-168.91634944,0.00016578,2]
[424809914,1781177452000,-1798.80895522,0.00016574,2]
[424809920,1781177452000,-171.13,0.00016767,2]
[424809916,1781177452000,-10212.09716464,0.000166,2]
[424809905,1781177452000,-900.0,0.00016438,2]
[424809906,1781177452000,-151.0,0.00016438,2]
[424809907,1781177452000,-151.0,0.00016438,2]
[424809913,1781177452000,-500.0,0.00016474,2]
[424809908,1781177452000,-151.0,0.00016438,2]
[424809911,1781177452000,-151.0,0.00016438,2]
[424809910,1781177452000,-151.0,0.00016438,2]
[424809928,1781177452000,-944.0,0.0001726,2]
[424809917,1781177452000,-9026.1837,0.000166,2]
[424809918,1781177452000,-168.44,0.00016712,2]
[424809927,1781177452000,-1865.36488656,0.00017122,2]
[424809909,1781177452000,-151.0,0.00016438,2]
[424809986,1781177453000,-151.0,0.00018218,2]
[424809980,1781177453000,-151.0,0.00018218,2]
[424809979,1781177453000,-500.0,0.00018218,2]
[424809978,1781177453000,-151.0,0.00018218,2]
[424809976,1781177453000,-500.0,0.00018218,2]
[424809974,1781177453000,-500.0,0.00018218,2]
[424809987,1781177453000,-151.0,0.00018218,2]
[424809970,1781177453000,-151.0,0.00018218,2]
[424809975,1781177453000,-151.0,0.00018218,2]
[424809985,1781177453000,-500.0,0.00018218,2]
[424809964,1781177453000,-200.0,0.00018218,2]
[424809977,1781177453000,-151.0,0.00018218,2]
[424809984,1781177453000,-151.0,0.00018218,2]
[424809989,1781177453000,-151.0,0.00018218,2]
[424809981,1781177453000,-151.0,0.00018218,2]
[424809982,1781177453000,-500.0,0.00018218,2]
[424809988,1781177453000,-500.0,0.00018218,2]
[424809990,1781177453000,-151.0,0.00018218,2]
[424809998,1781177453000,-151.0,0.00018218,2]
[424809996,1781177453000,-151.0,0.00018218,2]
[424809991,1781177453000,-500.0,0.00018218,2]
[424809995,1781177453000,-151.0,0.00018218,2]
[424809994,1781177453000,-500.0,0.00018218,2]
[424809992,1781177453000,-151.0,0.00018218,2]
[424809997,1781177453000,-500.0,0.00018218,2]
[424809973,1781177453000,-151.0,0.00018218,2]
[424809983,1781177453000,-151.0,0.00018218,2]
[424809972,1781177453000,-2005.9555727,0.00018218,2]
[424809952,1781177453000,-300.0,0.00017999,2]
[424809971,1781177453000,-151.0,0.00018218,2]
[424809946,1781177453000,-283.47917106,0.00017591,2]
[424809950,1781177453000,-200.0,0.00017824,2]
[424809945,1781177453000,-500.0,0.0001757,2]
[424809943,1781177453000,-168.91634944,0.00017392,2]
[424809944,1781177453000,-10212.09716464,0.000174,2]
[424809948,1781177453000,-1934.38338736,0.0001767,2]
[424809949,1781177453000,-10212.09716464,0.000178,2]
[424809942,1781177453000,-169.86498162,0.00017391,2]
[424809947,1781177453000,-10212.09716464,0.000176,2]
[424809960,1781177453000,-1125.0,0.00018139,2]
[424809959,1781177453000,-204.0,0.00018082,2]
[424809961,1781177453000,-720.38,0.000182,2]
[424809953,1781177453000,-300.0,0.00017999,2]
[424809956,1781177453000,-10212.09716464,0.00018,2]
[424809951,1781177453000,-380.81750763,0.00017844,2]
[424809962,1781177453000,-10212.09716464,0.000182,2]
[424809954,1781177453000,-7884.3262389,0.00018,2]
[424809955,1781177453000,-227.69822417,0.00018,2]
[424809957,1781177453000,-350.0,0.00018,2]
[424809958,1781177453000,-647.0,0.00018,2]
[424809963,1781177453000,-151.0,0.00018218,2]
[424809965,1781177453000,-151.0,0.00018218,2]
[424809969,1781177453000,-151.0,0.00018218,2]
[424809968,1781177453000,-151.0,0.00018218,2]
[424809967,1781177453000,-151.0,0.00018218,2]
[424809966,1781177453000,-151.0,0.00018218,2]
[424809993,1781177453000,-151.0,0.00018218,2]
[424810041,1781177453000,-100000.0,0.00019339,7]
[424810002,1781177453000,-151.0,0.00018218,2]
[424810025,1781177453000,-2000.0,0.00019056,7]
[424810027,1781177453000,-10212.09716464,0.000191,2]
[424810033,1781177453000,-328.59815402,0.00019205,2]
[424810036,1781177453000,-151.0,0.00019314,2]
[424810039,1781177453000,-300.0,0.00019338,2]
[424810040,1781177453000,-300.0,0.00019338,2]
[424810034,1781177453000,-647.0,0.00019253,3]
[424810043,1781177453000,-3000.0,0.00019378,2]
[424810042,1781177453000,-198.79480972,0.00019378,2]
[424810045,1781177453000,-575.73060654,0.00019378,2]
[424810035,1781177453000,-10212.09716464,0.000193,2]
[424810038,1781177453000,-2157.14243826,0.00019314,2]
[424810044,1781177453000,-151.79021661,0.00019378,2]
[424810037,1781177453000,-200.0,0.00019314,2]
[424810046,1781177453000,-270.0,0.00019452,2]
[424810056,1781177453000,-151.0,0.00019862,2]
[424810049,1781177453000,-300.0,0.00019499,2]
[424810047,1781177453000,-380.0,0.00019452,2]
[424810054,1781177453000,-10212.09716464,0.000197,2]
[424810053,1781177453000,-450.0,0.00019665,2]
[424810048,1781177453000,-300.0,0.00019499,2]
[424810055,1781177453000,-5530.0,0.000198,5]
[424810051,1781177453000,-10212.09716464,0.000195,2]
[424810009,1781177453000,-151.0,0.00018218,2]
[424810050,1781177453000,-126148.04616402,0.000195,2]
[424810028,1781177453000,-5530.0,0.000191,3]
[424810024,1781177453000,-290362.63352325,0.00019,2]
[424810052,1781177453000,-437.4,0.00019665,2]
[424810031,1781177453000,-151.0,0.00019178,2]
[424810026,1781177453000,-1125.0,0.00019094,2]
[424810001,1781177453000,-151.0,0.00018218,2]
[424809999,1781177453000,-151.0,0.00018218,2]
[424810000,1781177453000,-500.0,0.00018218,2]
[424810003,1781177453000,-500.0,0.00018218,2]
[424810006,1781177453000,-500.0,0.00018218,2]
[424810008,1781177453000,-151.0,0.00018218,2]
[424810004,1781177453000,-151.0,0.00018218,2]
[424810005,1781177453000,-151.0,0.00018218,2]
[424810007,1781177453000,-151.0,0.00018218,2]
[424810011,1781177453000,-350.0,0.00018353,4]
[424810014,1781177453000,-335.0,0.00018427,5]
[424810013,1781177453000,-1760.5,0.0001841,2]
[424810010,1781177453000,-10212.09716464,0.000183,2]
[424810019,1781177453000,-200.0,0.00018766,2]
[424810015,1781177453000,-10212.09716464,0.000185,2]
[424810020,1781177453000,-2080.17592889,0.00018766,2]
[424810012,1781177453000,-69774.0,0.000184,2]
[424810016,1781177453000,-647.0,0.00018626,2]
[424810017,1781177453000,-10212.09716464,0.000187,2]
[424810021,1781177453000,-10212.09716464,0.000189,2]
[424810023,1781177453000,-3125.69869704,0.00019,2]
[424810022,1781177453000,-870.41644991,0.00019,2]
[424810032,1781177453000,-151.0,0.00019178,2]
[424810030,1781177453000,-155.79619,0.00019178,2]
[424810018,1781177453000,-151.0,0.00018766,2]
[424810029,1781177453000,-160.93281423,0.00019178,2]
[424810091,1781177454000,-262.0,0.00020136,2]